[Event "DVM U14 2021"]
[Site "Willingen"]
[Date "2022.08.15"]
[Round "5"]
[White "Stein, Theodor"]
[Black "Gold, Jan Christian"]
[Result "1-0"]
[ECO "C01"]
[WhiteElo "1510"]
[BlackElo "1638"]
[Annotator "NA RC"]
[PlyCount "61"]
[EventDate "2022.08.12"]
[EventType "team-tourn"]
[EventRounds "7"]
[EventCountry "GER"]
[SourceTitle "playchess.com"]
[Source "ChessBase"]
[SourceQuality "1"]
[TimeControl "40/5400+30:1800+30"]

1. e4 {[%emt 0:00:01]} e6 {[%emt 0:00:00]} 2. d4 {[%emt 0:00:01]} d5 {[%emt 0:00:00]} 3. exd5 {[%emt 0:00:02]} exd5 {[%emt 0:00:00]} 4. c4 {[%emt 0:00:09]} Nf6 {[%emt 0:00:00]} 5. Nc3 {[%emt 0:00:06]} Bb4 {[%emt 0:00:07]} 6. a3 {[%emt 0:00:22]} Bxc3+ {[%emt 0:00:05]} 7. bxc3 {[%emt 0:00:08]} O-O {[%emt 0:02:08]} 8. Nf3 {[%emt 0:03:04]} Re8+ {[%emt 0:00:15]} 9. Be3 {[%emt 0:00:22]} Ng4 {[%emt 0:01:57]} 10. Qd2 {[%emt 0:00:01]} dxc4 11. Bxc4 {[%emt 0:09:54]} Qe7 {[%emt 0:01:12]} 12. O-O {[%emt 0:00:00]} Be6 {[%emt 0:08:23]} 13. Bg5 {[%emt 0:00:00]} Qd7 {[%emt 0:01:04]} 14. Bd3 {[%emt 0:00:00]} Bd5 {[%emt 0:04:44]} 15. Qc2 {[%emt 0:05:40]} Bxf3 {[%emt 0:00:23]} 16. gxf3 {[%emt 0:17:18]} Qd5 {[%emt 0:03:48]} 17. Bxh7+ {[%emt 0:00:01]} Kh8 {[%emt 0:00:33]} 18. Qf5 {[%emt 0:01:31]} Qxf5 {[%emt 0:00:19]} 19. Bxf5 {[%emt 0:00:06]} Nh6 {[%emt 0:00:03]} 20. Be4 {[%emt 0:00:00]} c6 {[%emt 0:05:24]} 21. Rab1 {[%emt 0:00:00]} b6 {[%emt 0:11:58]} 22. Rfe1 {[%emt 0:13:49]} Rc8 {[%emt 0:07:42]} 23. Bxh6 {[%emt 0:00:02]} gxh6 {[%emt 0:00:24]} 24. Bf5 {[%emt 0:12:22]} Rg8+ {[%emt 0:00:07]} 25. Kf1 {[%emt 0:00:04]} Kg7 {[%emt 0:06:21]} 26. Re5 {[%emt 0:00:31]} Na6 {[%emt 0:01:53]} 27. Rbe1 {[%emt 0:06:16]} Kf6 {[%emt 0:06:19]} 28. Bd3 {[%emt 0:24:17]} Nc7 {[%emt 0:00:45]} 29. Rf5+ {[%emt 0:00:39]} Kg7 {[%emt 0:00:17]} 30. Re7 {[%emt 0:00:49]} Rgc8 {[%emt 0:00:25]} 31. Rfxf7+ 1-0

[Event "DVM U14 2021"]
[Site "Willingen"]
[Date "2022.08.15"]
[Round "5"]
[White "Eichhorn, Valentin"]
[Black "Ehrig, Leon Chris"]
[Result "1/2-1/2"]
[ECO "B13"]
[WhiteElo "1506"]
[BlackElo "1832"]
[Annotator "NA RC"]
[PlyCount "77"]
[EventDate "2022.08.12"]
[EventType "team-tourn"]
[EventRounds "7"]
[EventCountry "GER"]
[SourceTitle "playchess.com"]
[Source "ChessBase"]
[SourceQuality "1"]
[TimeControl "40/5400+30:1800+30"]

{[%evp 21,77,50,60,71,68,27,19,27,29,15,37,19,25,32767,32767,32767,32767,32767,32767,32767,-27,-43,0,-58,-36,-42,-22,-57,-58,-59,-12,-21,0,-8,-8,32767,0,-10,-10,-133,32767,-12833,-631,32767,32767,-904,32767,32767,32767,32767,-276,-236,0,32767,-90,-417,0,0]} 1. d4 {[%emt 0:00:05]} c5 {[%emt 0:01:05]} 2. e3 {[%emt 0:02:23]} cxd4 {[%emt 0:00:14]} 3. exd4 {[%emt 0:00:13]} g6 {[%emt 0:00:32]} 4. Nf3 {[%emt 0:01:11]} d5 {[%emt 0:00:31]} 5. Bd3 {[%emt 0:00:18]} Bg7 {[%emt 0:03:00]} 6. Bf4 {[%emt 0:02:02]} Nc6 {[%emt 0:01:19]} 7. c3 {[%emt 0:00:21]} Nf6 {[%emt 0:01:15]} 8. Nbd2 {[%emt 0:03:36]} O-O {[%emt 0:00:57]} 9. O-O {[%emt 0:00:35]} Bf5 {[%emt 0:09:41]} 10. Bxf5 {[%emt 0:00:09]} gxf5 {[%emt 0:01:06]} 11. Ne5 {[%emt 0:04:51]} Ne4 {[%emt 0:05:58]} 12. Nxc6 {[%emt 0:00:58]} bxc6 {[%emt 0:03:48]} 13. Nxe4 {[%emt 0:01:11]} (13. Qh5 $14) 13... fxe4 {[%emt 0:07:58]} 14. Qd2 {[%emt 0:22:55]} f6 {[%emt 0:02:17]} 15. Bh6 {[%emt 0:02:29]} e5 {[%emt 0:01:43]} 16. Bxg7 {[%emt 0:00:26]} Kxg7 {[%emt 0:09:05]} 17. dxe5 {[%emt 0:00:17]} fxe5 {[%emt 0:00:53]} 18. Rad1 {[%emt 0:20:28]} Qh4 {[%emt 0:04:55]} 19. Qe3 {[%emt 0:06:31]} Rf6 {[%emt 0:03:56]} 20. Qg3+ {[%emt 0:00:31]} Qxg3 {[%emt 0:01:36]} 21. hxg3 {[%emt 0:00:52]} Raf8 {[%emt 0:01:04]} 22. Rde1 {[%emt 0:09:35]} ({White should play} 22. c4 $1 $11) 22... Rg6 {[%emt 0:03:48]} 23. Re2 {[%emt 0:00:49]} Rf5 {[%emt 0:05:37]} (23... Rb8 $15) 24. c4 {[%emt 0:04:23]} Rh5 {[%emt 0:02:24]} 25. Rfe1 {[%emt 0:00:37]} Rgh6 {[%emt 0:00:48]} (25... Kf6 $17 26. cxd5 cxd5) 26. f3 {[%emt 0:03:31]} Rh1+ {[%emt 0:00:06]} 27. Kf2 {[%emt 0:00:29]} exf3 {[%emt 0:05:00]} 28. Rxe5 {[%emt 0:01:19]} fxg2 {[%emt 0:01:43]} 29. Re7+ {[%emt 0:00:44]} Kf6 {[%emt 0:14:43]} 30. R1e6+ {[%emt 0:00:46]} (30. R7e6+ $1 $11 Kg5 31. Kxg2) 30... Kf5 {[%emt 0:00:52]} 31. Re1 $2 {[%emt 0:01:52]} ({Wrong is} 31. Re5+ $2 Kg4 32. Re1 Kh3 $19) (31. g4+ Kxg4 32. Rg7+ Kf5 33. Rxh6 Rxh6 34. cxd5) 31... Kg4 {[%emt 0:02:21]} (31... Rxe1 $142 32. Rxe1 Rh1) 32. Rg1 {[%emt 0:00:32]} Kh3 {[%emt 0:00:28]} 33. Rf7 {[%emt 0:00:48]} Rxg1 {[%emt 0:00:07]} 34. Kxg1 {[%emt 0:02:19]} Kxg3 {[%emt 0:00:17]} 35. Rg7+ {[%emt 0:00:32]} Kf3 {[%emt 0:00:37]} 36. Rf7+ {[%emt 0:01:28]} Kg3 $2 {[%emt 0:00:42]} (36... Ke3 $19 37. cxd5 cxd5 38. Re7+ Kf3 39. Rf7+ Kg3 40. Rg7+ Rg6 41. Rxh7 d4) 37. Rg7+ {[%emt 0:01:48]} Kh3 $2 {[%emt 0:02:09]} (37... Rg6 $19 {and Black stays clearly on top.} 38. Rxa7 d4 39. Rxh7 Re6 40. Rg7+ Kf3 41. Rf7+ Ke3 42. Kxg2 d3 43. Rf3+ Kd2) 38. Rxa7 $2 {[%emt 0:00:19] [#]} (38. cxd5 $11 {and White is okay.} cxd5 39. Rxa7) 38... Rh4 $11 {[%emt 0:01:16]} ({And not} 38... dxc4 39. Ra3+ Kg4 40. Rc3 $11) (38... d4 $1 $19 39. Ra3+ Kg4 40. Kxg2 Kf4) 39. cxd5 {[%emt 3:35:01]} 1/2-1/2

[Event "DVM U14 2021"]
[Site "Willingen"]
[Date "2022.08.15"]
[Round "5"]
[White "Apel, Linus"]
[Black "Trenz, Finn"]
[Result "0-1"]
[ECO "B01"]
[WhiteElo "1488"]
[BlackElo "1667"]
[Annotator "NA RC"]
[PlyCount "85"]
[EventDate "2022.08.12"]
[EventType "team-tourn"]
[EventRounds "7"]
[EventCountry "GER"]
[SourceTitle "playchess.com"]
[Source "ChessBase"]
[SourceQuality "1"]
[TimeControl "40/5400+30:1800+30"]

1. e4 {[%emt 0:00:33]} d5 {[%emt 0:00:00]} 2. exd5 {[%emt 0:00:09]} Qxd5 {[%emt 0:00:00]} 3. Nc3 {[%emt 0:00:05]} Qd6 {[%emt 0:00:08]} 4. d4 {[%emt 0:00:05]} Nf6 {[%emt 0:01:45]} 5. Bc4 {[%emt 0:01:27]} a6 {[%emt 0:00:22]} 6. Nf3 {[%emt 0:00:14]} b5 {[%emt 0:01:52]} 7. Be2 {[%emt 0:00:22]} Bb7 {[%emt 0:04:02]} 8. O-O {[%emt 0:01:05]} e6 {[%emt 0:06:50]} 9. Bg5 {[%emt 0:01:11]} Nbd7 {[%emt 0:02:15]} 10. Qd2 {[%emt 0:01:24]} c5 {[%emt 0:04:07]} 11. Rad1 {[%emt 0:09:25]} b4 {[%emt 0:03:24]} 12. Nb1 {[%emt 0:02:13]} Ne4 {[%emt 0:00:34]} 13. Qc1 {[%emt 0:00:22]} Nxg5 {[%emt 0:00:37]} 14. Qxg5 {[%emt 0:01:11]} h6 {[%emt 0:00:31]} 15. Qe3 {[%emt 0:05:53]} Nf6 {[%emt 0:07:04]} 16. dxc5 {[%emt 0:00:17]} Qxc5 {[%emt 0:07:06]} 17. Qxc5 {[%emt 0:00:08]} Bxc5 {[%emt 0:00:14]} 18. c3 {[%emt 0:03:11]} a5 {[%emt 0:11:05]} 19. Ne5 {[%emt 0:02:31]} Ke7 {[%emt 0:14:07]} 20. Nd2 {[%emt 0:15:37]} bxc3 {[%emt 0:00:28]} 21. bxc3 {[%emt 0:11:40]} Rhc8 {[%emt 0:05:18]} 22. c4 {[%emt 0:07:30]} Rc7 {[%emt 0:01:32]} 23. Bf3 {[%emt 0:00:46]} Bxf3 {[%emt 0:00:58]} 24. Ndxf3 {[%emt 0:03:30]} Rac8 {[%emt 0:04:51]} 25. Rb1 {[%emt 0:04:40]} Ne4 {[%emt 0:03:57]} 26. Rb2 {[%emt 0:03:17]} Nd6 {[%emt 0:09:50]} 27. Re1 {[%emt 0:02:51]} Bb4 {[%emt 0:01:20]} 28. Rd1 {[%emt 0:02:26]} Nxc4 {[%emt 0:01:06]} 29. Rc2 {[%emt 0:00:50]} Nxe5 {[%emt 0:00:07]} 30. Rxc7+ {[%emt 0:00:05]} Rxc7 {[%emt 0:00:06]} 31. Nxe5 {[%emt 0:01:03]} f6 {[%emt 0:01:13]} 32. Ng6+ {[%emt 0:03:12]} Kf7 {[%emt 0:00:07]} 33. Nf4 {[%emt 0:01:46]} e5 {[%emt 0:02:17]} 34. Nd3 {[%emt 0:03:57]} Be7 {[%emt 0:02:57]} 35. f4 {[%emt 0:00:49]} e4 {[%emt 0:01:36]} 36. Ne1 {[%emt 0:01:14]} f5 {[%emt 0:01:08]} 37. Rd5 {[%emt 0:00:27]} Rc5 {[%emt 0:00:15]} 38. Rd7 {[%emt 0:01:24]} Ke6 {[%emt 0:00:17]} 39. Rd1 {[%emt 0:01:42]} g5 {[%emt 0:00:27]} 40. g3 {[%emt 0:03:27]} Rd5 {[%emt 0:00:27]} 41. Rc1 {[%emt 0:32:34]} Rd2 {[%emt 0:31:07]} 42. Rc6+ {[%emt 0:03:13]} Kd5 {[%emt 0:02:02]} 43. Rc3 {[%emt 3:39:49]} 0-1

[Event "DVM U14 2021"]
[Site "Willingen"]
[Date "2022.08.15"]
[Round "5"]
[White "Römer, Uri"]
[Black "Braeutigam, Alexander"]
[Result "0-1"]
[ECO "B21"]
[WhiteElo "1485"]
[BlackElo "1771"]
[Annotator "NA RC"]
[PlyCount "100"]
[EventDate "2022.08.12"]
[EventType "team-tourn"]
[EventRounds "7"]
[EventCountry "GER"]
[SourceTitle "playchess.com"]
[Source "ChessBase"]
[SourceQuality "1"]
[TimeControl "40/5400+30:1800+30"]

1. e4 {[%emt 0:00:06]} c5 {[%emt 0:00:00]} 2. d4 {[%emt 0:00:05]} cxd4 {[%emt 0:00:00]} 3. c3 {[%emt 0:00:05]} d3 {[%emt 0:00:21]} 4. c4 {[%emt 0:00:20]} d6 {[%emt 0:00:50]} 5. Bxd3 {[%emt 0:00:23]} Nf6 {[%emt 0:01:00]} 6. Nc3 {[%emt 0:00:19]} g6 {[%emt 0:01:07]} 7. Nf3 {[%emt 0:01:01]} Nc6 {[%emt 0:02:56]} 8. h3 {[%emt 0:00:19]} Bg7 {[%emt 0:01:45]} 9. O-O {[%emt 0:00:23]} O-O {[%emt 0:02:29]} 10. Bf4 {[%emt 0:02:42]} Nd7 {[%emt 0:05:09]} 11. a3 {[%emt 0:01:25]} b6 {[%emt 0:01:25]} 12. Qc2 {[%emt 0:03:04]} Bb7 {[%emt 0:02:13]} 13. Rfe1 {[%emt 0:03:03]} Rc8 {[%emt 0:14:07]} 14. Rad1 {[%emt 0:02:07]} Nce5 {[%emt 0:03:32]} 15. Nxe5 {[%emt 0:00:19]} Nxe5 {[%emt 0:02:35]} 16. Bxe5 {[%emt 0:00:07]} Bxe5 {[%emt 0:14:03]} 17. Qc1 {[%emt 0:12:56]} Bg7 {[%emt 0:06:23]} 18. f4 {[%emt 0:03:01]} Qc7 {[%emt 0:04:34]} 19. Kh1 {[%emt 0:00:41]} a6 {[%emt 0:02:04]} 20. Nd5 {[%emt 0:00:09]} Bxd5 {[%emt 0:01:49]} 21. cxd5 {[%emt 0:00:09]} Qxc1 {[%emt 0:00:08]} 22. Rxc1 {[%emt 0:00:08]} Bxb2 {[%emt 0:03:59]} 23. Rb1 {[%emt 0:07:01]} Bd4 {[%emt 0:02:32]} 24. a4 {[%emt 0:02:12]} a5 {[%emt 0:01:16]} 25. Bb5 {[%emt 0:01:48]} Rc2 {[%emt 0:03:24]} 26. Rbc1 {[%emt 0:01:00]} Rfc8 {[%emt 0:00:53]} 27. Bc6 {[%emt 0:00:24]} Rxc1 {[%emt 0:00:08]} 28. Rxc1 {[%emt 0:00:10]} Be3 {[%emt 0:01:18]} 29. Rf1 {[%emt 0:02:02]} Rc7 {[%emt 0:04:16]} 30. g4 {[%emt 0:01:27]} Kg7 {[%emt 0:06:03]} 31. f5 {[%emt 0:00:24]} g5 {[%emt 0:02:32]} 32. Re1 {[%emt 0:00:13]} Bd4 {[%emt 0:01:07]} 33. Rd1 {[%emt 0:00:19]} Bc5 {[%emt 0:01:39]} 34. Kg2 {[%emt 0:00:05]} Rc8 {[%emt 0:03:38]} 35. Rf1 {[%emt 0:00:10]} Kf6 {[%emt 0:00:45]} 36. Kf3 {[%emt 0:00:09]} Rh8 {[%emt 0:03:05]} 37. Re1 {[%emt 0:00:44]} h5 {[%emt 0:00:50]} 38. Re2 {[%emt 0:00:06]} hxg4+ {[%emt 0:01:38]} 39. Kxg4 {[%emt 0:00:15]} Rh4+ {[%emt 0:00:28]} 40. Kg3 {[%emt 0:00:19]} Ke5 {[%emt 0:00:00]} 41. Bb7 {[%emt 0:00:26]} Rxe4 {[%emt 0:03:02]} 42. Rxe4+ {[%emt 0:00:07]} Kxe4 {[%emt 0:00:05]} 43. Kg4 {[%emt 0:00:14]} f6 {[%emt 0:00:37]} 44. Bc6 {[%emt 0:00:15]} Be3 {[%emt 0:00:20]} 45. Bb7 {[%emt 0:00:09]} b5 {[%emt 0:00:49]} 46. axb5 {[%emt 0:00:09]} a4 {[%emt 0:01:16]} 47. Bc6 {[%emt 0:00:04]} a3 {[%emt 0:00:10]} 48. b6 {[%emt 0:00:21]} Bxb6 {[%emt 0:00:13]} 49. Ba4 {[%emt 0:00:04]} a2 {[%emt 0:00:07]} 50. Bc2+ {[%emt 0:00:12]} Ke5 0-1

[Event "DVM U14 2021"]
[Site "Willingen"]
[Date "2022.08.15"]
[Round "5"]
[White "Borgert, Alexander"]
[Black "Spranger, Tobias"]
[Result "0-1"]
[ECO "D32"]
[WhiteElo "1477"]
[BlackElo "1522"]
[Annotator "NA RC"]
[PlyCount "104"]
[EventDate "2022.08.12"]
[EventType "team-tourn"]
[EventRounds "7"]
[EventCountry "GER"]
[SourceTitle "playchess.com"]
[Source "ChessBase"]
[SourceQuality "1"]
[TimeControl "40/5400+30:1800+30"]

1. d4 {[%emt 0:00:02]} d5 {[%emt 0:00:02]} 2. c4 {[%emt 0:00:05]} e6 {[%emt 0:00:03]} 3. Nc3 {[%emt 0:00:05]} c5 {[%emt 0:00:05]} 4. cxd5 {[%emt 0:00:06]} exd5 {[%emt 0:00:06]} 5. Nf3 {[%emt 0:00:07]} Nc6 {[%emt 0:02:09]} 6. Bf4 {[%emt 0:01:21]} Nf6 {[%emt 0:03:10]} 7. e3 {[%emt 0:00:29]} cxd4 {[%emt 0:01:06]} 8. Nxd4 {[%emt 0:00:28]} Bb4 {[%emt 0:00:16]} 9. a3 {[%emt 0:04:45]} Ba5 {[%emt 0:00:52]} 10. Bb5 {[%emt 0:05:15]} Bd7 {[%emt 0:01:11]} 11. Bg5 {[%emt 0:04:03]} a6 {[%emt 0:07:36]} 12. Bxc6 {[%emt 0:02:07]} Bxc6 {[%emt 0:00:57]} 13. b4 {[%emt 0:00:21]} Bc7 {[%emt 0:01:06]} 14. Nxc6 {[%emt 0:00:28]} bxc6 {[%emt 0:00:05]} 15. Qd4 {[%emt 0:01:27]} Qe7 {[%emt 0:07:35]} 16. Bxf6 {[%emt 0:03:57]} Qxf6 {[%emt 0:00:46]} 17. Qxf6 {[%emt 0:00:08]} gxf6 {[%emt 0:00:04]} 18. Rc1 {[%emt 0:02:09]} Kd7 {[%emt 0:06:43]} 19. O-O {[%emt 0:04:10]} Be5 {[%emt 0:02:22]} 20. Na4 {[%emt 0:04:55]} Rhb8 {[%emt 0:03:04]} 21. Nc5+ {[%emt 0:02:54]} Kc7 {[%emt 0:01:25]} 22. Rb1 {[%emt 0:04:42]} Bd6 {[%emt 0:01:00]} 23. Rfc1 {[%emt 0:01:14]} a5 {[%emt 0:03:37]} 24. b5 {[%emt 0:00:25]} Rxb5 {[%emt 0:01:38]} 25. Rxb5 {[%emt 0:00:25]} cxb5 {[%emt 0:00:05]} 26. Ne4+ {[%emt 0:00:11]} Kd7 {[%emt 0:00:19]} 27. Nc5+ {[%emt 0:03:48]} Ke7 {[%emt 0:09:33]} 28. a4 {[%emt 0:01:20]} Rc8 {[%emt 0:03:02]} 29. Nb3 {[%emt 0:00:32]} Rxc1+ {[%emt 0:00:05]} 30. Nxc1 {[%emt 0:00:06]} bxa4 {[%emt 0:00:11]} 31. Na2 {[%emt 0:00:06]} Bb4 {[%emt 0:00:29]} 32. Kf1 {[%emt 0:00:10]} Kd6 {[%emt 0:00:04]} 33. Ke2 {[%emt 0:00:13]} Kc5 {[%emt 0:00:14]} 34. Kd3 {[%emt 0:00:20]} a3 {[%emt 0:01:24]} 35. f3 {[%emt 0:00:19]} f5 {[%emt 0:00:57]} 36. h3 {[%emt 0:00:26]} Be1 {[%emt 0:00:43]} 37. g4 {[%emt 0:00:32]} fxg4 {[%emt 0:00:12]} 38. hxg4 {[%emt 0:00:14]} f6 {[%emt 0:00:44]} 39. Ke2 {[%emt 0:02:18]} Bb4 {[%emt 0:00:53]} 40. Kd3 {[%emt 0:00:07]} Kd6 {[%emt 0:00:57]} 41. Kd4 {[%emt 0:30:18]} Bc5+ {[%emt 0:30:08]} 42. Kd3 {[%emt 0:00:16]} h6 {[%emt 0:00:21]} 43. Nc3 {[%emt 0:00:10]} Ke6 {[%emt 0:02:37]} 44. e4 {[%emt 0:03:35]} d4 {[%emt 0:05:56]} 45. Na2 {[%emt 0:00:08]} Ke5 {[%emt 0:00:20]} 46. Ke2 {[%emt 0:01:04]} Kf4 {[%emt 0:00:15]} 47. Nc1 {[%emt 0:00:35]} Kg3 {[%emt 0:00:42]} 48. Nb3 {[%emt 0:04:39]} a2 {[%emt 0:01:38]} 49. Na1 {[%emt 0:00:18]} d3+ {[%emt 0:00:51]} 50. Kxd3 {[%emt 0:00:07]} Kxf3 {[%emt 0:00:03]} 51. Kc4 {[%emt 0:00:10]} Bd6 {[%emt 0:00:06]} 52. Kd5 {[%emt 0:00:10]} Be5 {[%emt 0:00:08]} 0-1

[Event "DVM U14 2021"]
[Site "Willingen"]
[Date "2022.08.15"]
[Round "5"]
[White "Freude, Paul"]
[Black "Tietz, Bennit"]
[Result "1-0"]
[ECO "C22"]
[WhiteElo "1477"]
[BlackElo "1684"]
[Annotator "NA RC"]
[PlyCount "67"]
[EventDate "2022.08.12"]
[EventType "team-tourn"]
[EventRounds "7"]
[EventCountry "GER"]
[SourceTitle "playchess.com"]
[Source "ChessBase"]
[SourceQuality "1"]
[TimeControl "40/5400+30:1800+30"]

1. e4 {[%emt 0:00:06]} e5 {[%emt 0:02:23]} 2. d4 {[%emt 0:00:22]} exd4 {[%emt 0:00:10]} 3. Qxd4 {[%emt 0:00:28]} Nc6 {[%emt 0:00:03]} 4. Qe3 {[%emt 0:08:20]} g6 {[%emt 0:00:11]} 5. h4 {[%emt 0:12:21]} Bg7 {[%emt 0:00:58]} 6. h5 {[%emt 0:22:18]} d6 {[%emt 0:02:38]} 7. hxg6 {[%emt 0:00:26]} fxg6 {[%emt 0:03:32]} 8. Bc4 {[%emt 0:07:21]} Qe7 {[%emt 0:00:51]} 9. Bxg8 {[%emt 0:00:18]} Rxg8 {[%emt 0:00:31]} 10. Rxh7 {[%emt 0:01:40]} Bc3+ {[%emt 0:00:28]} 11. Nxc3 {[%emt 0:00:03]} Qxh7 {[%emt 0:00:40]} 12. Nd5 {[%emt 0:04:30]} Rf8 {[%emt 0:04:37]} 13. Qg3 {[%emt 0:04:16]} Be6 {[%emt 0:02:07]} 14. Bg5 {[%emt 0:02:29]} Bxd5 {[%emt 0:00:07]} 15. exd5 {[%emt 0:05:40]} Ne7 {[%emt 0:02:12]} 16. Qe3 {[%emt 0:07:02]} O-O-O {[%emt 0:02:10]} 17. O-O-O {[%emt 0:04:06]} Rde8 {[%emt 0:01:11]} 18. Qxa7 {[%emt 0:03:51]} Qg7 {[%emt 0:02:57]} 19. Qa8+ {[%emt 0:00:30]} Kd7 {[%emt 0:00:13]} 20. Qa4+ {[%emt 0:03:38]} c6 {[%emt 0:02:37]} 21. Bxe7 {[%emt 0:02:28]} Rxe7 {[%emt 0:01:13]} 22. dxc6+ {[%emt 0:00:04]} bxc6 {[%emt 0:01:04]} 23. Qa7+ {[%emt 0:00:38]} Ke8 {[%emt 0:00:51]} 24. Qb8+ {[%emt 0:00:53]} Kf7 {[%emt 0:05:17]} 25. Qxd6 {[%emt 0:03:09]} Qh6+ {[%emt 0:03:54]} 26. Kb1 {[%emt 0:01:43]} Qh5 {[%emt 0:02:00]} 27. Nf3 {[%emt 0:00:57]} Rfe8 {[%emt 0:05:38]} 28. Qxc6 {[%emt 0:02:49]} Re2 {[%emt 0:03:31]} 29. Rd7+ {[%emt 0:01:06]} Kg8 {[%emt 0:00:34]} 30. Qc4+ {[%emt 0:00:40]} R2e6 {[%emt 0:03:05]} 31. a3 {[%emt 0:00:03]} Kf8 {[%emt 0:00:45]} 32. Qf4+ {[%emt 0:01:35]} Qf5 {[%emt 0:00:06]} 33. Qh6+ {[%emt 0:00:03]} Kg8 34. Qg7# {[%emt 2:45:00]} 1-0

[Event "DVM U14 2021"]
[Site "Willingen"]
[Date "2022.08.15"]
[Round "5"]
[White "Lichtinger, Simon"]
[Black "Keck, Johannes"]
[Result "1/2-1/2"]
[ECO "B09"]
[WhiteElo "1473"]
[BlackElo "1310"]
[Annotator "NA RC"]
[PlyCount "51"]
[EventDate "2022.08.12"]
[EventType "team-tourn"]
[EventRounds "7"]
[EventCountry "GER"]
[SourceTitle "playchess.com"]
[Source "ChessBase"]
[SourceQuality "1"]
[TimeControl "40/5400+30:1800+30"]

1. d4 {[%emt 0:00:01]} Nf6 {[%emt 0:00:32]} 2. Nc3 {[%emt 0:00:05]} g6 {[%emt 0:08:36]} 3. e4 {[%emt 0:00:07]} d6 {[%emt 0:00:40]} 4. f4 {[%emt 0:00:04]} Bg7 {[%emt 0:00:56]} 5. Nf3 {[%emt 0:00:01]} O-O {[%emt 0:01:06]} 6. Bd3 {[%emt 0:03:06]} c5 {[%emt 0:03:04]} 7. dxc5 {[%emt 0:00:00]} dxc5 {[%emt 0:01:30]} 8. O-O {[%emt 0:00:53]} Nc6 {[%emt 0:08:20]} 9. Be3 {[%emt 0:04:59]} b6 {[%emt 0:02:32]} 10. Qe2 {[%emt 0:08:41]} Ng4 {[%emt 0:05:37]} 11. e5 {[%emt 0:04:25]} Nxe3 {[%emt 0:01:51]} 12. Qxe3 {[%emt 0:00:16]} Bb7 {[%emt 0:03:17]} 13. Be4 {[%emt 0:04:38]} f5 {[%emt 0:07:07]} 14. Bd5+ {[%emt 0:04:18]} Kh8 {[%emt 0:04:28]} 15. Ng5 {[%emt 0:04:00]} Qd7 {[%emt 0:05:35]} 16. Qh3 {[%emt 0:29:10]} h6 {[%emt 0:12:41]} 17. Bf7 {[%emt 0:03:33]} Qd4+ {[%emt 0:05:46]} 18. Kh1 {[%emt 0:00:22]} Nxe5 {[%emt 0:01:03]} 19. Rad1 {[%emt 0:04:02]} Nxf7 {[%emt 0:01:27]} 20. Nxf7+ {[%emt 0:01:47]} Rxf7 {[%emt 0:01:12]} 21. Rxd4 {[%emt 0:00:04]} cxd4 {[%emt 0:00:12]} 22. Ne2 {[%emt 0:01:28]} e6 {[%emt 0:09:02]} 23. Rd1 {[%emt 0:05:22]} Rd8 {[%emt 0:06:33]} 24. c3 {[%emt 0:04:58]} Rfd7 {[%emt 0:01:40]} 25. Nxd4 {[%emt 0:00:56]} Kh7 {[%emt 0:01:07]} 26. Qe3 {[%emt 0:01:10]} 1/2-1/2

[Event "DVM U14 2021"]
[Site "Willingen"]
[Date "2022.08.15"]
[Round "5"]
[White "Fock, Madiha"]
[Black "Schoen, Florian"]
[Result "1/2-1/2"]
[ECO "C47"]
[WhiteElo "1472"]
[BlackElo "1688"]
[Annotator "NA RC"]
[PlyCount "114"]
[EventDate "2022.08.12"]
[EventType "team-tourn"]
[EventRounds "7"]
[EventCountry "GER"]
[SourceTitle "playchess.com"]
[Source "ChessBase"]
[SourceQuality "1"]
[TimeControl "40/5400+30:1800+30"]

1. e4 {[%emt 0:00:01]} e5 {[%emt 0:00:05]} 2. Nf3 {[%emt 0:00:05]} Nc6 {[%emt 0:00:04]} 3. Nc3 {[%emt 0:00:06]} Nf6 {[%emt 0:01:10]} 4. d4 {[%emt 0:00:41]} exd4 {[%emt 0:00:06]} 5. Nxd4 {[%emt 0:00:05]} Nxe4 {[%emt 0:01:58]} 6. Nxe4 {[%emt 0:00:48]} Qe7 {[%emt 0:00:27]} 7. f3 {[%emt 0:01:02]} d5 {[%emt 0:00:16]} 8. Bb5 {[%emt 0:01:03]} Bd7 {[%emt 0:02:33]} 9. O-O {[%emt 0:07:55]} dxe4 {[%emt 0:01:49]} 10. Bxc6 {[%emt 0:02:10]} bxc6 {[%emt 0:08:24]} 11. fxe4 {[%emt 0:00:54]} g6 {[%emt 0:05:40]} 12. Qf3 {[%emt 0:03:27]} Bg7 {[%emt 0:00:49]} 13. c3 {[%emt 0:13:29]} O-O {[%emt 0:01:16]} 14. Bf4 {[%emt 0:01:16]} Rab8 {[%emt 0:06:28]} 15. Rab1 {[%emt 0:04:02]} Rb7 {[%emt 0:00:32]} 16. e5 {[%emt 0:03:48]} Qc5 {[%emt 0:04:18]} 17. b4 {[%emt 0:10:34]} Qd5 {[%emt 0:02:22]} 18. Qe2 {[%emt 0:00:42]} c5 {[%emt 0:06:01]} 19. Qf3 {[%emt 0:04:17]} Qxf3 {[%emt 0:01:17]} 20. Nxf3 {[%emt 0:00:04]} Bf5 {[%emt 0:02:43]} 21. Rb2 {[%emt 0:02:44]} cxb4 {[%emt 0:01:01]} 22. cxb4 {[%emt 0:00:44]} c5 {[%emt 0:02:05]} 23. a3 {[%emt 0:05:49]} Rfb8 {[%emt 0:01:48]} 24. Be3 {[%emt 0:02:22]} cxb4 {[%emt 0:02:54]} 25. Rxb4 {[%emt 0:01:53]} Rxb4 {[%emt 0:02:16]} 26. axb4 {[%emt 0:00:15]} Rxb4 {[%emt 0:02:41]} 27. Bxa7 {[%emt 0:00:24]} Rb1 {[%emt 0:07:37]} 28. Rxb1 {[%emt 0:03:43]} Bxb1 {[%emt 0:00:01]} 29. Kf2 {[%emt 0:00:16]} Kf8 {[%emt 0:03:52]} 30. Bc5+ {[%emt 0:04:50]} Ke8 {[%emt 0:00:29]} 31. Ke3 {[%emt 0:00:30]} h6 {[%emt 0:01:08]} 32. Kd4 {[%emt 0:02:09]} Kd7 {[%emt 0:00:20]} 33. h3 {[%emt 0:03:05]} Ke6 {[%emt 0:01:26]} 34. g4 {[%emt 0:01:01]} Bc2 {[%emt 0:01:35]} 35. Ba7 {[%emt 0:02:32]} Bd1 {[%emt 0:00:40]} 36. Ne1 {[%emt 0:02:21]} Bxe5+ {[%emt 0:00:11]} 37. Ke4 {[%emt 0:00:50]} Ba4 {[%emt 0:06:40]} 38. Be3 {[%emt 0:04:38]} Bc6+ {[%emt 0:02:58]} 39. Kd3 {[%emt 0:00:00]} g5 {[%emt 0:01:03]} 40. Ke2 {[%emt 0:00:00]} Be4 {[%emt 0:05:34]} 41. Bc5 {[%emt 0:33:19]} Bd6 {[%emt 0:32:04]} 42. Bd4 {[%emt 0:02:26]} f6 {[%emt 0:01:21]} 43. Ke3 {[%emt 0:01:54]} Bh1 {[%emt 0:05:07]} 44. Kf2 {[%emt 0:02:18]} Bb4 {[%emt 0:09:28]} 45. Ng2 {[%emt 0:01:55]} Bxg2 {[%emt 0:00:00]} 46. Kxg2 {[%emt 0:00:00]} Bf8 {[%emt 0:00:00]} 47. Kf3 {[%emt 0:01:39]} f5 {[%emt 0:00:03]} 48. Bc3 {[%emt 0:00:26]} f4 {[%emt 0:00:00]} 49. Bb2 {[%emt 0:00:00]} Kf7 {[%emt 0:00:00]} 50. Bc3 {[%emt 0:00:00]} Bg7 {[%emt 0:00:00]} 51. Bb4 {[%emt 0:00:00]} Ke6 {[%emt 0:00:00]} 52. Ba5 {[%emt 0:00:00]} Kd5 {[%emt 0:00:00]} 53. Bd8 {[%emt 0:00:00]} Kd4 {[%emt 0:00:00]} 54. h4 {[%emt 0:00:00]} gxh4 {[%emt 0:00:00]} 55. Bxh4 {[%emt 0:00:00]} Be5 {[%emt 0:00:00]} 56. g5 {[%emt 0:00:00]} h5 {[%emt 0:00:00]} 57. g6 {[%emt 0:00:00]} Kd5 {[%emt 0:00:00]} 1/2-1/2